[Event "44th Chess Olympiad Open 2022"]
[Site "Chennai"]
[Date "2022.08.06"]
[Round "8.30"]
[White "Al-Zendani, Zendan"]
[Black "Priasmoro, Novendra"]
[Result "0-1"]
[WhiteElo "2284"]
[BlackElo "2494"]
[Annotator "TA"]
[PlyCount "118"]
[EventDate "2022.??.??"]
[TimeControl "60"]

{[%evp 29,118,0,13,7,101,-134,-23,-166,-159,-125,-137,-141,-149,-165,-182,-101,
-50,-44,-53,-48,-75,-93,-101,-168,-185,-181,-141,-158,-150,-123,-120,-123,-123,
-233,-214,-207,-185,-233,-210,-283,-313,-312,-288,-297,-221,-241,-241,-457,
-480,-470,-469,-541,-443,-443,-421,-402,-386,-556,-541,-546,-565,-571,-567,
-557,-546,-531,-531,-525,-369,-459,-413,-372,-103,-493,-501,-531,-518,-855,
-829,-29969,-29970,-29971,-29972,-29972,-29973,-29972,-29971,-29975,-29974,
-29979,-29979]} 1. e4 {[%emt 0:00:13]} c5 {[%emt 0:00:11]} 2. Nf3 {[%emt 0:00:
00]} Nc6 {[%emt 0:00:25]} 3. d4 {[%emt 0:00:44]} cxd4 {[%emt 0:00:06]} 4. Nxd4
{[%emt 0:00:06]} g6 {[%emt 0:00:15]} 5. Nc3 {[%emt 0:00:37]} Bg7 {[%emt 0:00:
00]} 6. Be3 {[%emt 0:00:12]} Nf6 {[%emt 0:00:05]} 7. Bc4 {[%emt 0:01:09]} O-O {
[%emt 0:00:17]} 8. Bb3 {[%emt 0:00:06]} d6 {[%emt 0:01:49]} 9. f3 {[%emt 0:00:
00]} Bd7 {[%emt 0:00:32]} 10. Qd2 {[%emt 0:00:39]} Rc8 {[%emt 0:05:53]} 11.
O-O-O {[%emt 0:02:23]} Ne5 {[%emt 0:00:14]} 12. h4 {[%emt 0:00:31]} h5 {
[%emt 0:00:21]} 13. Bg5 {[%emt 0:00:35]} Rc5 {[%emt 0:00:46]} 14. Kb1 {[%emt 0:
00:00]} b5 {[%emt 0:02:47]} 15. Rhe1 {[%emt 0:00:14]} a5 {[%emt 0:19:32][%cal
Ya7a5,Ya5a4]} (15... b4 $5 {[%cal Rb4c3]} 16. Nd5 Nxd5 17. exd5 (17. Bxd5 a5
$11) 17... Re8 $11) 16. f4 {[%emt 0:03:05] B78: Sicilian Dragon: Yugoslav
Attack, 9 Bc4 Bd7 10 0-0-0 Rc8.} Neg4 {[%emt 0:00:25]} (16... Nc4 $11 {remains
equal.} 17. Bxc4 b4) 17. a3 $2 {[%emt 0:41:16] [#]} (17. Bxf6 $16 {and life is
bright.} Bxf6 18. e5 dxe5 19. Ndxb5 $1) 17... Qb8 $146 {[%emt 0:00:00]} ({
Black should try} 17... b4 $17 18. axb4 axb4) ({Predecessor:} 17... b4 18. axb4
axb4 19. Nd5 Nxd5 20. Bxd5 Rxd5 21. exd5 Qa5 22. c4 Ra8 23. Kc2 Qc5 24. Rc1
Bxd4 25. f5 Qxc4+ 26. Kd1 Ba4+ 27. Rc2 Nf2+ 28. Kc1 Nd3+ {0-1 (28) Konguvel,P 
(2425)-Hakki,I (2395) Teheran 1997}) 18. f5 {[%emt 0:08:35]} (18. Nd5 $1 $11 {
and White stays safe.} Nxd5 19. Bxd5) 18... a4 $19 {[%emt 0:00:00]} 19. Ba2 {
[%emt 0:03:30]} b4 {[%emt 0:03:54]} 20. axb4 {[%emt 0:00:00]} Qxb4 {[%emt 0:00:
05] Strongly threatening ...Rb8.} 21. Nd5 {[%emt 0:06:43]} Nxd5 {[%emt 0:05:28]
} 22. Bxd5 {[%emt 0:01:51]} Rb8 {[%emt 0:04:26] Chess con chili.} (22... Qb6
$17 {...gxf5 is the strong threat.} 23. fxg6 e6) 23. Qxb4 $1 $15 {[%emt 0:05:
35]} Rxb4 $40 {[%emt 0:00:00] Black has some attack.} 24. c3 {[%emt 0:01:59]}
Rxc3 {[%emt 0:01:29]} 25. Bxe7 {[%emt 0:20:01][%cal Yf5g6]} Rc8 {[%emt 0:05:49]
} (25... Bxd4 26. Rxd4 $1 Rxd4 27. bxc3 $14) 26. e5 {[%emt 0:00:00]} (26. fxg6
$17 {was necessary.} Bxd4 27. gxf7+ Kg7 28. Rd2) 26... Bxe5 $19 {[%emt 0:12:29]
} 27. Rxe5 {[%emt 0:00:00] [#]} Rxd4 $1 {[%emt 0:00:00]} 28. Rxd4 {[%emt 0:00:
00]} dxe5 {[%emt 0:00:04]} 29. Bxf7+ {[%emt 0:00:00]} Kxf7 {[%emt 0:00:05]} 30.
Rxd7 {[%emt 0:00:00]} gxf5 {[%emt 0:00:00] Endgame And now ...Ke6 would win.
KRB-KRN} 31. Bg5+ {[%emt 0:00:00]} (31. Bb4+ $17 Kg8 32. Ra7) 31... Kg8 {
[%emt 0:07:17]} 32. Ra7 {[%emt 0:00:00]} Rc4 {[%emt 0:00:07]} 33. Ra8+ {
[%emt 0:00:16]} (33. Bd2 $142) 33... Kf7 {[%emt 0:00:32]} 34. Ra7+ {[%emt 0:00:
15]} Ke6 {[%emt 0:01:00]} 35. Rh7 {[%emt 0:01:17]} Re4 {[%emt 0:00:37] aiming
for ...f4.} 36. Rxh5 {[%emt 0:01:13]} Re2 {[%emt 0:00:05]} 37. Rh8 {[%emt 0:00:
37]} Rxg2 {[%emt 0:00:06]} 38. h5 $2 {[%emt 0:00:51]} (38. Rf8 {was the only
chance.}) 38... Rh2 {[%emt 0:00:34]} 39. h6 {[%emt 0:00:26]} Kd5 {[%emt 0:10:
03]} (39... f4 40. Rf8 $17) 40. Ka2 {[%emt 0:02:54]} Rh3 {[%emt 0:04:23]} (
40... f4 41. h7 $11) 41. h7 {[%emt 0:00:00] Threatens to win with Rd8+.} Ke4 {
[%emt 0:30:06]} 42. Kb1 {[%emt 0:01:37]} Rh2 {[%emt 0:02:37]} 43. Ka2 {[%emt 0:
00:15]} (43. Kc1 $142) 43... Nf2 {[%emt 0:09:51]} (43... f4 44. Bxf4 exf4 45.
Re8+ Ne5 46. h8=Q Rxh8 47. Rxh8 $11) 44. Ka3 {[%emt 0:00:00]} Nd3 $1 {[%emt 0:
00:00]} (44... f4 45. Bxf4 $1 exf4 46. Re8+ Kd4 47. h8=Q+ Rxh8 48. Rxh8 $11)
45. Kxa4 {[%emt 0:00:00]} Nxb2+ {[%emt 0:00:00]} 46. Kb3 {[%emt 0:00:00]} Nd3 {
[%emt 0:00:00]} 47. Kc3 {[%emt 0:00:00]} Nf4 {[%emt 0:00:00]} 48. Kc4 {[%emt 0:
06:19]} Ng2 {[%emt 0:00:00]} 49. Bf6 {[%emt 0:00:00][%cal Yf6e5]} Ne3+ {
[%emt 0:00:00]} 50. Kc5 {[%emt 0:00:00][%cal Yf6e5] [#]} Ng4 {[%emt 0:00:00]} (
{Not} 50... f4 51. Bxe5 Rh5 52. Rf8 (52. Re8 Rxh7 53. Bd6+ Kf3 $15) 52... Rxh7
53. Bxf4 $11) 51. Bg5 {[%emt 0:01:40]} (51. Bd8 $17 {nothing else works.})
51... Nf2 {[%emt 0:00:00]} ({Worse is} 51... f4 52. Bxf4 exf4 53. Re8+ Ne5 54.
h8=Q Rxh8 55. Rxh8 $11) 52. Kd6 {[%emt 0:00:00] [#]} Nd3 $1 {[%emt 0:00:00]}
53. Ke6 {[%emt 0:00:00]} (53. Kc6 $142 f4 54. Bd8) 53... f4 {[%emt 0:00:00]}
54. Bxf4 {[%emt 0:00:00]} exf4 {[%emt 0:00:00][%cal Ye5f4,Yf4f3,Yf3f2] KRN-KR.
Black mates.} 55. Kf6 {[%emt 0:00:28]} Ne5 {[%emt 0:00:00]} 56. Re8 {[%emt 0:
00:00] [#]} Rxh7 $1 {[%emt 0:00:00]} 57. Rxe5+ {[%emt 0:00:00]} Kd3 {[%emt 0:
00:00]} 58. Ra5 {[%emt 0:00:00]} f3 {[%emt 0:00:00]} 59. Kg5 {[%emt 0:00:05]}
f2 {[%emt 0:00:00] Weighted Error Value: White=0.71/Black=0.17 (very precise)}
0-1

[Event "44th Chess Olympiad Open 2022"]
[Site "Chennai"]
[Date "2022.08.06"]
[Round "8.30"]
[White "Al Harazy, Khalid"]
[Black "Kurniawan, Muhamad Agus"]
[Result "0-1"]
[WhiteElo "2149"]
[BlackElo "2328"]
[Annotator "RC"]
[PlyCount "75"]
[EventDate "2022.??.??"]
[TimeControl "60"]

1. e4 {[%emt 0:00:06]} d5 {[%emt 0:00:21]} 2. exd5 {[%emt 0:00:20]} Nf6 {
[%emt 0:00:02]} 3. d4 {[%emt 0:00:48]} Nxd5 {[%emt 0:00:38]} 4. Nf3 {[%emt 0:
00:00]} Bg4 {[%emt 0:01:08]} 5. Be2 {[%emt 0:00:30]} e6 {[%emt 0:00:07]} 6. O-O
{[%emt 0:00:21]} Nc6 {[%emt 0:03:28]} 7. c4 {[%emt 0:01:24]} Nb6 {[%emt 0:00:
00]} 8. Be3 {[%emt 0:04:55]} Be7 {[%emt 0:03:23]} 9. Nc3 {[%emt 0:09:58]} O-O {
[%emt 0:02:39]} 10. d5 {[%emt 0:22:29]} exd5 {[%emt 0:02:26]} 11. Bxb6 {
[%emt 0:03:29]} axb6 {[%emt 0:00:29]} 12. Nxd5 {[%emt 0:10:40]} Bf6 {[%emt 0:
00:00]} 13. Qd2 {[%emt 0:17:36]} Bxf3 {[%emt 0:07:47]} 14. Bxf3 {[%emt 0:03:27]
} Be5 {[%emt 0:13:13]} 15. Be4 {[%emt 0:21:03]} Re8 {[%emt 0:13:46]} 16. g3 {
[%emt 0:00:00]} Nd4 {[%emt 0:10:18]} 17. Rad1 {[%emt 0:12:36]} Rxa2 {[%emt 0:
00:00]} 18. Nc3 {[%emt 0:00:00]} Ra8 {[%emt 0:17:17]} 19. Bxb7 Rb8 {[%emt 0:00:
00]} 20. Bg2 g6 {[%emt 0:04:33]} 21. Rfe1 {[%emt 0:00:00]} Bg7 {[%emt 0:00:15]}
22. Rxe8+ {[%emt 0:00:00]} Qxe8 {[%emt 0:00:03]} 23. Re1 {[%emt 0:01:00]} Qd8 {
[%emt 0:00:00]} 24. Qf4 {[%emt 0:00:00]} Ne6 {[%emt 0:00:25]} 25. Qc1 {[%emt 0:
00:00]} Bxc3 {[%emt 0:00:00]} 26. Qxc3 {[%emt 0:00:00]} Qd4 {[%emt 0:00:00]}
27. Qxd4 {[%emt 0:00:00]} Nxd4 {[%emt 0:00:00]} 28. Re7 {[%emt 0:00:00]} b5 {
[%emt 0:00:11]} 29. Rxc7 {[%emt 0:00:00]} bxc4 {[%emt 0:00:40]} 30. Rxc4 {
[%emt 0:00:00]} Nf5 {[%emt 0:00:29]} 31. Rc2 {[%emt 0:00:00]} Rb4 {[%emt 0:00:
00]} 32. Bd5 {[%emt 0:00:00]} Rd4 {[%emt 0:00:17]} 33. Bc4 {[%emt 0:00:00]} g5
{[%emt 0:00:18]} 34. h3 {[%emt 0:00:36]} h5 {[%emt 0:00:11]} 35. b3 {[%emt 0:
00:00]} h4 {[%emt 0:00:36]} 36. Kg2 {[%emt 0:00:00]} hxg3 {[%emt 0:00:05]} 37.
fxg3 {[%emt 0:00:00]} Ne3+ {[%emt 0:00:00]} 38. Kh2 {[%emt 0:00:28]} 0-1

[Event "44th Chess Olympiad Open 2022"]
[Site "Chennai"]
[Date "2022.08.06"]
[Round "8.31"]
[White "Delgado Ramirez, Neuris"]
[Black "Cu Hor, Winston Darwin"]
[Result "1-0"]
[WhiteElo "2614"]
[BlackElo "2328"]
[Annotator "TA"]
[PlyCount "83"]
[EventDate "2022.??.??"]
[TimeControl "60"]

{[%evp 19,83,50,55,63,85,70,72,83,82,85,94,100,118,112,117,86,128,115,120,96,
169,159,156,169,180,128,170,168,407,395,357,359,354,347,5260,569,5235,557,558,
549,539,539,524,520,515,0,0,0,0,0,0,0,0,0,8,8,139,-64,29955,29941,29971,29968,
29974,29975,29975,29971]} 1. e4 {[%emt 0:00:21]} c5 {[%emt 0:00:09]} 2. Nf3 {
[%emt 0:00:06]} d6 {[%emt 0:00:09]} 3. d4 {[%emt 0:00:05]} Nf6 {[%emt 0:00:10]}
4. Nc3 {[%emt 0:00:32]} cxd4 {[%emt 0:00:09]} 5. Nxd4 {[%emt 0:00:09]} a6 {
[%emt 0:00:10]} 6. Be2 {[%emt 0:00:07]} e5 {[%emt 0:02:13]} 7. Nb3 {[%emt 0:00:
00]} Be7 {[%emt 0:00:25]} 8. Be3 {[%emt 0:00:19]} O-O {[%emt 0:01:37]} 9. g4 {
[%emt 0:01:00][%cal Yg2g4,Yg4g5]} Be6 {[%emt 0:00:18]} 10. g5 {[%emt 0:00:34]}
Nfd7 {[%emt 0:00:25]} 11. h4 {[%emt 0:00:29] B92: Sicilian Najdorf: 6 Be2.} a5
{[%emt 0:07:05]} 12. f4 {[%emt 0:04:47] White is more active.} exf4 {[%emt 0:
16:11]} 13. Bxf4 {[%emt 0:03:38] White is better.} Ne5 {[%emt 0:00:25] [#]} 14.
Qd2 $146 {[%emt 0:01:43]} ({Predecessor:} 14. Nd4 Nbc6 15. Ndb5 f5 16. Nd5 fxe4
17. Nbc7 Bxd5 18. Qxd5+ Kh8 19. Ne6 Qb6 20. Nxf8 Rxf8 21. Bxe5 {1-0 (38)
Delchev,A (2583)-Colovic,A (2385) Subotica 2003}) 14... Nbc6 {[%emt 0:01:47]}
15. O-O-O {[%emt 0:03:57]} a4 {[%emt 0:03:41]} 16. Nd4 {[%emt 0:00:06]} Nxd4 {
[%emt 0:06:59]} 17. Qxd4 {[%emt 0:01:03]} Qa5 {[%emt 0:00:00]} 18. a3 {[%emt 0:
07:40]} (18. Nd5 $6 Bxd5 19. exd5 a3 $14) 18... Rfc8 {[%emt 0:06:11]} 19. Kb1 {
[%emt 0:10:37]} Nc4 {[%emt 0:07:57]} (19... Qc5 $16) 20. Nd5 $18 {[%emt 0:01:
52]} Bxd5 {[%emt 0:01:09]} 21. exd5 {[%emt 0:08:14]} (21. Qxd5 Qc7 $16) 21...
Qb5 {[%emt 0:07:11] And now ...Nxa3+ would win.} 22. Ka2 {[%emt 0:02:14]} ({
White should try} 22. Bd3 $18) 22... Bf8 {[%emt 0:03:38]} 23. h5 {[%emt 0:01:
19][%cal Yg5g6,Yh4h5,Yh5g6]} g6 $2 {[%emt 0:00:00]} (23... Qc5 24. g6 Qxd4 25.
Rxd4 Ne5) 24. hxg6 {[%emt 0:04:56][%csl Gh1][%cal Rg6h7]} Bg7 {[%emt 0:11:02]}
25. gxf7+ {[%emt 0:03:28]} (25. gxh7+ Kh8 26. Be3 (26. Bxc4 $2 Rxc4 27. Qxg7+
Kxg7 $19) 26... Qxb2+ 27. Qxb2 Nxb2 $14) 25... Kf8 {[%emt 0:02:23]} 26. Bxc4 {
[%emt 0:33:55]} Rxc4 $2 {[%emt 0:00:12]} (26... Qxc4+ 27. Qxc4 Rxc4) 27. Bxd6+
{[%emt 0:00:07]} Kxf7 {[%emt 0:00:13]} 28. Qf2+ {[%emt 0:03:46]} (28. g6+ $142
Kg8 29. gxh7+ Kh8 30. Qxg7+ $3 Kxg7 31. Be5+ Kg6 32. Rdg1+ Kf5 33. Rh5+ (33.
Rg8 Qxd5 34. Rh5+ Ke4 $17) 33... Ke4 34. Rg4+ (34. Rg8 Qxd5 35. h8=Q Qxg8 $17)
34... Ke3 35. Rg3+ Ke4 36. Bd6 Rxc2 37. Rh4+ Kxd5 38. Rh5+ Kxd6 39. Rg6+ Kc7
40. Rxb5) 28... Kg8 {[%emt 0:00:00][%csl Gg7][%cal Rb5b2]} 29. Bb4 {[%emt 0:00:
03]} Rxb4 {[%emt 0:02:08]} 30. axb4 {[%emt 0:00:02]} Qc4+ {[%emt 0:08:25]} 31.
Kb1 $1 {[%emt 0:00:08] Threatening mate with Qf5.} (31. Ka3 $2 Bxb2+ 32. Kxb2
a3+ 33. Kc1 a2 $19) 31... a3 {[%emt 0:00:30]} 32. Qe1 $2 {[%emt 0:02:26]} ({
White must play} 32. Qe3 $18 {White wants to mate with Qe6+.} a2+ 33. Ka1 Qxc2
34. Qc1 Qxc1+ 35. Rxc1) 32... a2+ $11 {[%emt 0:02:14]} (32... axb2 33. Qe6+ Kf8
34. Rdf1+) 33. Ka1 {[%emt 0:00:08] Intending Qe6+ and mate.} Qxc2 {[%emt 0:00:
10][%csl Gc2][%cal Rg7b2]} 34. Qe6+ {[%emt 0:03:05]} Kh8 {[%emt 0:00:02][%csl
Gc2][%cal Rg7b2]} 35. Rxh7+ $1 {[%emt 0:00:22]} Qxh7 {[%emt 0:00:23]} 36. Qe2 {
[%emt 0:00:00] Against Qh2. Threatens to win with d6. Really sharp!} Rd8 {
[%emt 0:00:00]} 37. d6 $36 {[%emt 0:01:11] Black must now prevent d7. White is
more active.} Qg6 {[%emt 0:00:31]} (37... Qf5 $1 $11 {keeps the balance.}) 38.
d7 $2 {[%emt 0:02:24] [#]} ({Don't play} 38. Qe7 $6 Qe8 39. Qc7 Qd7 $11) (38.
Qc4 $1 $16 {Strongly threatening Rh1+.} Qh7 39. Qd5) 38... Kg8 $2 {[%emt 0:00:
00] [#] Loses the game.} (38... Qxg5 $2 39. Qe8+ Kh7 40. Qe4+ (40. Rh1+ Bh6 $16
) 40... Kh8 41. Rh1+ Bh6 42. Qxb7 $18 (42. Qd4+ Kh7 $16)) (38... Rxd7 $1 $15
39. Rh1+ (39. Qh2+ $2 Kg8 $19) 39... Kg8 40. Qc4+ Rf7) 39. Qe7 $1 {[%emt 0:00:
56] White mates.} Bxb2+ {[%emt 0:00:44]} 40. Kxb2 {[%emt 0:00:38]} Qg7+ {
[%emt 0:00:22]} 41. Qxg7+ {[%emt 0:30:30]} Kxg7 {[%emt 0:30:02]} 42. Kxa2 {
[%emt 0:00:11] Weighted Error Value: White=0.53/Black=0.41} 1-0

[Event "44th Chess Olympiad Open 2022"]
[Site "Chennai"]
[Date "2022.08.06"]
[Round "8.31"]
[White "Juarez Flores, Carlos A."]
[Black "Cubas, Jose Fernando"]
[Result "0-1"]
[WhiteElo "2335"]
[BlackElo "2451"]
[Annotator "TA"]
[PlyCount "88"]
[EventDate "2022.??.??"]
[TimeControl "60"]

{[%evp 17,88,0,27,-58,-56,-65,-54,-77,-83,-113,-102,-101,-100,-100,-105,-109,
-91,-90,-85,-85,-85,-86,-79,-104,-116,-113,-127,-172,-181,-368,-364,-408,-433,
-435,-415,-491,-466,-499,-460,-467,-434,-784,-784,-613,-504,-504,-504,-595,
-504,-504,-504,-504,0,0,0,0,0,0,0,-8,0,-29977,-29978,-29978,-29978,-29978,
-29979,-29979,-29980,-29980,-29981,-29981,-29982]} 1. e4 {[%emt 0:00:04]} c5 {
[%emt 0:00:06]} 2. Nf3 {[%emt 0:00:11]} d6 {[%emt 0:00:09]} 3. d4 {[%emt 0:00:
00]} cxd4 {[%emt 0:00:06]} 4. Nxd4 {[%emt 0:00:06]} Nf6 {[%emt 0:00:04]} 5. f3
{[%emt 0:00:08]} e5 {[%emt 0:01:25]} 6. Nb3 {[%emt 0:00:19]} d5 {[%emt 0:07:09]
} 7. Bg5 {[%emt 0:00:22]} Be6 {[%emt 0:00:11]} 8. exd5 {[%emt 0:02:31]} Qxd5 {
[%emt 0:02:08]} 9. Nc3 {[%emt 0:01:22]} Bb4 {[%emt 0:07:23]} 10. Bxf6 {[%emt 0:
00:00] B55: Sicilian: 2...d6 3 d4 cxd4 4 Nxd4 Nf6 5 f3.} (10. Qd2 $11) 10...
Qxd1+ $15 {[%emt 0:01:47]} 11. Rxd1 {[%emt 0:00:15][%csl Gf6][%cal Rd1d8]} gxf6
{[%emt 0:00:37]} 12. Bb5+ {[%emt 0:05:24] [#] Black is slightly better.} Ke7
$146 {[%emt 0:02:10]} ({Predecessor:} 12... Nd7 13. O-O Bxc3 14. bxc3 O-O-O 15.
Bxd7+ Bxd7 16. f4 Be6 17. Rde1 Bc4 18. Rf3 Rhg8 19. fxe5 fxe5 {½-½ (45)
Wagner,F (2323)-Arnold,M (1899) Nuremberg 2009}) 13. O-O {[%emt 0:12:27]} Bxc3
{[%emt 0:00:54]} 14. bxc3 {[%emt 0:00:03] [#]} Rc8 $1 {[%emt 0:02:49]} 15. f4 {
[%emt 0:02:40]} Rxc3 {[%emt 0:03:06]} 16. Rde1 {[%emt 0:01:47]} Nd7 {[%emt 0:
00:00]} (16... Nc6 {with more complications.} 17. Bxc6 Rxc6 18. fxe5 fxe5 19.
Rxe5 Rxc2 20. Rfe1 Rd8) 17. Bxd7 {[%emt 0:03:53]} Kxd7 {[%emt 0:00:12]} 18.
fxe5 {[%emt 0:02:15]} fxe5 {[%emt 0:00:32]} ({Much weaker is} 18... Rxc2 $6 19.
Rd1+ Ke8 20. Nd4 Rxa2 21. exf6 $11) 19. Rxe5 {[%emt 0:07:53]} Rxc2 {[%emt 0:00:
00]} 20. Nd4 {[%emt 0:22:43]} Rxa2 {[%emt 0:00:57]} 21. Nxe6 {[%emt 0:00:11]}
fxe6 $17 {[%emt 0:00:07] Endgame KRR-KRR} 22. Rf7+ {[%emt 0:00:06]} Kd6 {
[%emt 0:00:18]} 23. Re1 {[%emt 0:00:02]} (23. Rb5 {is a better defense.}) 23...
b5 $19 {[%emt 0:04:31]} 24. Rxh7 {[%emt 0:01:21]} b4 {[%emt 0:01:42]} 25. Rd1+
{[%emt 0:08:44]} Kc6 {[%emt 0:00:53]} 26. Re7 {[%emt 0:02:07]} a5 {[%emt 0:04:
14]} 27. Rxe6+ {[%emt 0:01:27]} Kb5 {[%emt 0:00:07]} 28. Re5+ {[%emt 0:03:26]}
Ka4 {[%emt 0:00:08]} 29. g4 {[%emt 0:11:26]} (29. h4 $142 Rg8 30. Kf1) 29...
Rc8 {[%emt 0:17:29]} 30. g5 {[%emt 0:02:14]} Rcc2 {[%emt 0:00:00] Threatens to
win with ...Rg2+.} 31. h4 {[%emt 0:00:10]} Rg2+ {[%emt 0:00:00]} 32. Kf1 {
[%emt 0:01:46]} Rh2 {[%emt 0:00:41][%cal Rh2h1]} 33. Kg1 {[%emt 0:00:01]
Prevents Rh1+.} Rxh4 {[%emt 0:05:01]} 34. Rdd5 {[%emt 0:00:09]} Rc4 $2 {
[%emt 0:04:18]} ({Better is} 34... Kb3 $19 35. Rxa5 Rg4+ 36. Kf1 Rxa5 37. Rxa5
Kc3 38. Rc5+ Kd4) 35. Rxa5+ $11 {[%emt 0:00:20]} Kb3 {[%emt 0:00:03]} 36. Rxa2
{[%emt 0:04:00]} Kxa2 {[%emt 0:00:02] KR-KR} 37. Kf2 {[%emt 0:00:08]} b3 {
[%emt 0:00:27] ( -> ...b2)} 38. Ra5+ {[%emt 0:02:00]} Kb1 {[%emt 0:00:21]} 39.
Kf3 $2 {[%emt 0:00:28]} ({Avoid the trap} 39. Rb5 $2 b2 40. g6 Kc1 $19) (39. g6
$11) 39... b2 {[%emt 0:00:28] Black mates.} 40. g6 {[%emt 0:00:00]} Kc1 {
[%emt 0:00:44]} 41. Rg5 {[%emt 0:13:19]} b1=Q {[%emt 0:01:11]} 42. Rg1+ {
[%emt 0:00:12]} Kb2 {[%emt 0:00:06]} 43. Rxb1+ {[%emt 0:00:11]} Kxb1 {[%emt 0:
00:05]} 44. g7 {[%emt 0:00:49]} Rc8 {[%emt 0:00:10] Weighted Error Value:
White=0.57/Black=0.18 (very precise)} 0-1

[Event "44th Chess Olympiad Open 2022"]
[Site "Chennai"]
[Date "2022.08.06"]
[Round "8.31"]
[White "Zacarias, M Ruben D"]
[Black "Galvez Dastin, Eduardo"]
[Result "1-0"]
[WhiteElo "2175"]
[BlackElo "2152"]
[Annotator "RC"]
[PlyCount "99"]
[EventDate "2022.??.??"]
[TimeControl "60"]

1. e4 {[%emt 0:00:05]} c6 {[%emt 0:00:09]} 2. d4 {[%emt 0:00:06]} d5 {[%emt 0:
00:00]} 3. e5 {[%emt 0:00:24]} Bf5 {[%emt 0:00:12]} 4. h4 {[%emt 0:00:21]} c5 {
[%emt 0:00:34]} 5. dxc5 {[%emt 0:05:02]} Nc6 {[%emt 0:01:18]} 6. Bb5 {[%emt 0:
00:00]} Qc7 {[%emt 0:16:57]} 7. Qxd5 {[%emt 0:19:29]} e6 {[%emt 0:00:00]} 8.
Qd4 {[%emt 0:08:03]} Rd8 {[%emt 0:00:00]} 9. Qc3 {[%emt 0:03:08]} Nge7 {
[%emt 0:00:00]} 10. b4 {[%emt 0:25:18]} Nd5 {[%emt 0:00:00]} 11. Qb2 {[%emt 0:
00:00]} Ndxb4 {[%emt 0:00:00]} 12. Qxb4 {[%emt 0:00:11]} Qxe5+ {[%emt 0:00:00]}
13. Ne2 {[%emt 0:00:11]} Bxc2 {[%emt 0:34:16]} 14. Nbc3 {[%emt 0:17:16]} Bxc5 {
[%emt 0:11:10]} 15. Qf4 {[%emt 0:00:00]} O-O {[%emt 0:02:24]} 16. Bxc6 {
[%emt 0:00:00]} Qxf4 {[%emt 0:00:08]} 17. Bxf4 {[%emt 0:00:00]} bxc6 {[%emt 0:
00:00]} 18. O-O {[%emt 0:00:00]} Ba3 {[%emt 0:03:17]} 19. Bc1 {[%emt 0:00:00]}
Bb4 {[%emt 0:00:28]} 20. Be3 {[%emt 0:00:36]} e5 {[%emt 0:08:25]} 21. a3 {
[%emt 0:02:55]} Be7 {[%emt 0:00:42]} 22. Rfc1 {[%emt 0:01:29]} Bd3 {[%emt 0:00:
00]} 23. g3 {[%emt 0:01:30]} Rb8 {[%emt 0:01:55]} 24. Rd1 {[%emt 0:00:44]} Rfd8
{[%emt 0:00:42]} 25. Rd2 {[%emt 0:03:33]} Bc4 {[%emt 0:04:53]} 26. Rxd8+ {
[%emt 0:03:01]} Rxd8 {[%emt 0:00:06]} 27. f3 {[%emt 0:00:37]} Bxe2 {[%emt 0:00:
00]} 28. Nxe2 {[%emt 0:00:26]} Rd3 {[%emt 0:00:06]} 29. Kf2 {[%emt 0:02:14]}
Rxa3 {[%emt 0:01:21]} 30. Rb1 {[%emt 0:01:16]} Ra5 {[%emt 0:03:57]} 31. Rb7 {
[%emt 0:01:14]} Bf8 {[%emt 0:01:29]} 32. g4 {[%emt 0:01:08]} g6 {[%emt 0:01:15]
} 33. Ng3 {[%emt 0:01:16]} Rb5 {[%emt 0:03:34]} 34. Rxa7 {[%emt 0:01:17]} Rb2+
{[%emt 0:00:06]} 35. Ne2 {[%emt 0:00:51]} h5 {[%emt 0:02:48]} 36. g5 {[%emt 0:
00:00]} Kg7 {[%emt 0:00:22]} 37. Rc7 {[%emt 0:00:16]} Rc2 {[%emt 0:00:13]} 38.
Kf1 {[%emt 0:00:34]} Bd6 {[%emt 0:01:03]} 39. Rd7 {[%emt 0:00:06]} Bf8 {
[%emt 0:00:32]} 40. Ng3 {[%emt 0:00:14]} Rc3 {[%emt 0:00:12]} 41. Ke2 {[%emt 0:
00:00]} Rc2+ {[%emt 0:08:33]} 42. Kd3 {[%emt 0:00:00]} Rh2 {[%emt 0:00:08]} 43.
Bd2 {[%emt 0:00:00]} Rxh4 {[%emt 0:05:10]} 44. Bc3 {[%emt 0:00:00]} Rh3 {
[%emt 0:00:50]} 45. Bxe5+ {[%emt 0:00:00]} Kg8 {[%emt 0:00:06]} 46. Ke2 {
[%emt 0:00:00]} Bg7 {[%emt 0:03:56]} 47. Rd8+ {[%emt 0:00:00]} Kh7 {[%emt 0:00:
00]} 48. Bxg7 {[%emt 0:00:00]} Kxg7 {[%emt 0:00:12]} 49. Ne4 {[%emt 0:00:00]}
Rh2+ {[%emt 0:01:09]} 50. Kf1 {[%emt 0:00:00]} 1-0

[Event "44th Chess Olympiad Open 2022"]
[Site "Chennai"]
[Date "2022.08.06"]
[Round "8.31"]
[White "Giron Chavez David Emanuel"]
[Black "Jodorcovsky Werjivker, Paulo"]
[Result "0-1"]
[WhiteElo "2115"]
[BlackElo "2213"]
[Annotator "NA RC"]
[PlyCount "54"]
[EventDate "2022.??.??"]
[TimeControl "60"]

1. e4 {[%emt 0:00:07]} c5 {[%emt 0:00:05]} 2. Nf3 {[%emt 0:00:17]} Nc6 {
[%emt 0:00:06]} 3. d4 {[%emt 0:00:11]} cxd4 {[%emt 0:00:06]} 4. Nxd4 {[%emt 0:
00:00]} Nf6 {[%emt 0:00:13]} 5. Nc3 {[%emt 0:00:09]} e6 {[%emt 0:00:05]} 6.
Nxc6 {[%emt 0:00:37]} bxc6 {[%emt 0:00:05]} 7. e5 {[%emt 0:00:09]} Nd5 {
[%emt 0:00:13]} 8. Ne4 {[%emt 0:00:16]} Qc7 {[%emt 0:00:41]} 9. f4 {[%emt 0:00:
00]} Qb6 {[%emt 0:00:19]} 10. c4 {[%emt 0:01:11]} Ne3 {[%emt 0:00:48]} 11. Qd3
{[%emt 0:00:10]} Bb4+ {[%emt 0:00:00]} 12. Bd2 {[%emt 0:00:44]} Ba6 {[%emt 0:
00:00]} 13. b3 {[%emt 0:11:47]} O-O {[%emt 0:01:44]} 14. Bxb4 {[%emt 0:20:05]}
Qxb4+ {[%emt 0:01:37]} 15. Kf2 {[%emt 0:00:09]} Nd5 {[%emt 0:06:08]} 16. Kg3 {
[%emt 0:10:36]} f6 {[%emt 0:07:44]} 17. exf6 {[%emt 0:02:49]} Nxf6 {[%emt 0:00:
00]} 18. Be2 {[%emt 0:08:09]} d5 {[%emt 0:02:15]} 19. Ng5 {[%emt 0:00:25]} Rae8
{[%emt 0:03:34]} 20. h4 {[%emt 0:04:51]} h6 {[%emt 0:02:56]} 21. Bf3 {[%emt 0:
00:00]} e5 {[%emt 0:07:29]} 22. Qg6 {[%emt 0:11:00]} exf4+ {[%emt 0:01:23]} 23.
Kh2 {[%emt 0:00:01]} hxg5 {[%emt 0:03:07]} 24. hxg5 {[%emt 0:00:23]} Re6 {
[%emt 0:09:02]} 25. Kg1 {[%emt 0:01:26]} Qc5+ {[%emt 0:01:04]} 26. Kf1 {
[%emt 0:00:20]} dxc4 {[%emt 0:02:02]} 27. Be2 {[%emt 0:01:04]} Rxe2 {[%emt 0:
00:00]} 0-1